bitfinex/quotes_BTCUSD_20260307
["timestamp","ask_amount","ask_price","bid_price","bid_amount"]
[1772897507545,0.00148,67881.0,67869.0,0.02943859]
[1772897507904,0.00120505,67883.0,67871.0,0.03093282]
[1772897508106,0.00120505,67883.0,67873.0,0.03093282]
[1772897508304,0.00120505,67883.0,67874.0,0.07366591]
[1772897508498,0.07365229,67887.0,67876.0,0.03093282]
[1772897508909,0.07365113,67888.0,67876.0,0.03093282]
[1772897509114,0.07365113,67888.0,67877.0,0.03093282]
[1772897509519,0.00120505,67893.0,67878.0,0.04640331]
[1772897509733,0.07633079,67893.0,67881.0,0.02299184]
[1772897510081,0.0002267,67899.0,67882.0,0.04640331]
[1772897510255,0.00148,67898.0,67883.0,0.02299184]
[1772897510626,0.00148,67898.0,67885.0,0.02299184]
[1772897511046,0.00034683,67899.0,67884.0,0.07365505]
[1772897511510,0.00034683,67899.0,67886.0,0.02299184]
[1772897511651,0.00034683,67899.0,67888.0,0.02595205]
[1772897512667,0.00034683,67899.0,67890.0,0.02595205]
[1772897515087,0.00034683,67899.0,67892.0,0.02595205]
[1772897517027,0.0002267,67911.0,67892.0,0.02595205]
[1772897517350,0.04461043,67918.0,67896.0,0.02595205]
[1772897517582,0.04461043,67918.0,67898.0,0.02595205]
[1772897517583,0.07952058,67916.0,67898.0,0.02595205]
[1772897517725,0.04461043,67915.0,67897.0,0.00148]
[1772897518441,0.04461043,67915.0,67894.0,0.02595205]
[1772897519059,0.04461043,67915.0,67893.0,0.07512529]
[1772897519060,0.04461043,67915.0,67898.0,0.02595205]
[1772897519216,0.04461043,67913.0,67899.0,0.09959083]
[1772897519918,0.04461043,67913.0,67900.0,0.02564406]
[1772897520139,0.00738,67916.0,67900.0,0.02564406]
[1772897520840,0.00738,67916.0,67902.0,0.02564406]
[1772897520841,0.0059,67916.0,67902.0,0.02564406]
[1772897521229,0.0059,67916.0,67903.0,0.07363444]
[1772897521431,0.0059,67916.0,67904.0,0.02564406]
[1772897521648,0.04323892,67922.0,67906.0,0.02564406]
[1772897522053,0.11685307,67922.0,67906.0,0.02564406]
[1772897522457,0.04736563,67921.0,67906.0,0.02564406]
[1772897524523,0.00022001,67916.0,67906.0,0.02564406]
[1772897524728,0.04736563,67921.0,67908.0,0.02564406]
[1772897526738,0.00022001,67923.0,67910.0,0.02564406]
[1772897526941,0.00022001,67923.0,67909.0,0.07362794]
[1772897526942,0.00148,67929.0,67911.0,0.00148]
[1772897527242,0.00148,67929.0,67913.0,0.02564406]
[1772897527431,0.00022001,67932.0,67913.0,0.02564406]
[1772897527671,0.00170001,67932.0,67914.0,0.02564406]
[1772897527853,0.00170001,67932.0,67915.0,0.02564406]
[1772897528054,0.04736563,67930.0,67915.0,0.02564406]
[1772897528354,0.04748583,67930.0,67915.0,0.02564406]
[1772897528751,0.04748583,67930.0,67917.0,0.02564406]
[1772897529101,0.04748583,67930.0,67919.0,0.02564406]
[1772897530403,0.07372542,67930.0,67919.0,0.02564406]
[1772897530563,0.04736563,67929.0,67919.0,0.02564406]
[1772897531574,0.04736563,67929.0,67920.0,0.07361601]
[1772897532283,0.04736563,67929.0,67920.0,0.10003761]
[1772897532900,0.0001202,67930.0,67921.0,0.0264216]
[1772897533515,0.04736563,67929.0,67921.0,0.0264216]
[1772897534124,0.04736563,67929.0,67921.0,0.10003646]
[1772897535150,0.07382309,67932.0,67922.0,0.0264216]
[1772897535151,0.00022001,67932.0,67922.0,0.0264216]
[1772897535391,1e-08,67938.0,67924.0,0.0264216]
[1772897535544,0.0003,67940.0,67927.0,0.0264216]
[1772897535744,0.0003,67940.0,67928.0,0.0264216]
[1772897535938,0.04766563,67940.0,67928.0,0.0264216]
[1772897538115,0.0003,67940.0,67930.0,0.0264216]
[1772897538858,0.00022001,67932.0,67930.0,0.0264216]
[1772897539067,0.0003,67940.0,67930.0,0.0264216]
[1772897539234,0.00022001,67939.0,67930.0,0.0264216]
[1772897539998,0.00022001,67939.0,67931.0,0.07360409]
[1772897540199,0.00022001,67939.0,67931.0,0.10002569]
[1772897541938,0.00022001,67939.0,67931.0,0.07360409]
[1772897542144,0.00015,67933.0,67929.0,0.0264216]
[1772897542554,0.00022001,67939.0,67929.0,0.0264216]
[1772897544069,0.00022001,67939.0,67930.0,0.07360518]
[1772897544291,0.00022001,67939.0,67931.0,0.0264216]
[1772897544967,0.00022001,67939.0,67931.0,0.0279016]
[1772897547039,0.00022001,67939.0,67933.0,0.0264216]
[1772897547230,0.00575,67943.0,67933.0,0.0264216]
[1772897549340,0.00575,67943.0,67935.0,0.0264216]
[1772897551236,0.00575,67943.0,67936.0,0.07359868]
[1772897551434,0.00575,67943.0,67937.0,0.0264216]
[1772897552530,0.00597001,67943.0,67937.0,0.0264216]
[1772897552856,0.00022001,67945.0,67937.0,0.0264216]
[1772897553939,0.00022001,67945.0,67938.0,0.07359651]
[1772897554361,0.00022001,67945.0,67938.0,0.10001811]
[1772897556995,0.00022001,67945.0,67939.0,0.0264216]
[1772897557157,0.00022001,67946.0,67939.0,0.0264216]
[1772897558083,0.00022001,67946.0,67940.0,0.07359434]
[1772897558282,0.00022001,67946.0,67941.0,0.0264216]
[1772897559089,0.04631501,67946.0,67941.0,0.0264216]
[1772897560985,0.04631501,67946.0,67942.0,0.07359218]
[1772897561193,0.00022001,67946.0,67942.0,0.07359218]
[1772897561389,0.00022001,67946.0,67942.0,0.10001378]
[1772897561801,0.00022001,67949.0,67942.0,0.07359218]
[1772897561994,0.00222001,67950.0,67943.0,0.03145167]
[1772897562306,0.00056141,67954.0,67945.0,0.03145167]
[1772897562976,0.00056141,67954.0,67946.0,0.07358784]
[1772897563177,0.0009619,67954.0,67947.0,0.03145167]
[1772897565099,0.0009619,67954.0,67948.0,0.10503735]
[1772897565298,0.0009619,67954.0,67949.0,0.03145167]
[1772897566538,0.00022001,67959.0,67949.0,0.03145167]
[1772897566748,0.00012008,67956.0,67949.0,0.03145167]
[1772897566931,0.00022001,67954.0,67949.0,0.03145167]
[1772897567146,0.04631501,67959.0,67950.0,0.07358351]
[1772897567666,0.04631501,67959.0,67951.0,0.0299424]
[1772897571070,0.04631501,67959.0,67953.0,0.0299424]
[1772897571249,0.00022001,67959.0,67953.0,0.0299424]
[1772897574274,0.00022001,67959.0,67954.0,0.07357918]
[1772897576025,0.00022001,67959.0,67955.0,0.0299424]
[1772897576185,0.00022001,67959.0,67956.0,0.07357702]
[1772897576383,0.00022001,67959.0,67956.0,0.07211601]
[1772897577027,0.00022001,67959.0,67954.0,0.0735788]
[1772897577818,0.046095,67956.0,67950.0,0.00148]
[1772897578566,0.046095,67956.0,67951.0,0.10352483]
[1772897580176,0.02546524,67956.0,67951.0,0.10352483]
[1772897580390,0.00022001,67959.0,67951.0,0.10352483]
[1772897580623,0.00022001,67968.0,67952.0,0.0299424]
[1772897580844,0.00022001,67968.0,67953.0,0.0299424]
[1772897581635,0.00022001,67964.0,67953.0,0.0299424]
[1772897582040,0.00022001,67964.0,67953.0,0.0309424]
[1772897582407,0.00022001,67964.0,67955.0,0.02894297]
[1772897582626,0.00022001,67964.0,67956.0,0.03042297]
[1772897584121,0.00022001,67964.0,67956.0,0.00148]
[1772897584486,0.00022001,67964.0,67957.0,0.07357593]
[1772897585349,0.00022001,67964.0,67957.0,0.02537418]
[1772897585557,0.04407047,67964.0,67957.0,0.02537418]
[1772897585988,0.04407047,67964.0,67956.0,0.02685418]
[1772897586187,0.00022001,67964.0,67956.0,0.02685418]
[1772897588209,0.00022001,67964.0,67956.0,0.02705418]
[1772897589995,0.00022001,67964.0,67957.0,0.02894297]
[1772897590576,0.00170001,67968.0,67957.0,0.02894297]
[1772897591732,0.00170001,67968.0,67958.0,0.07357485]
[1772897591909,0.00022001,67968.0,67960.0,0.04535914]
[1772897592120,0.00022001,67968.0,67961.0,0.02894297]
[1772897593344,0.07355238,67979.0,67961.0,0.03042297]
[1772897593541,0.07355357,67978.0,67964.0,0.04535914]
[1772897593883,0.07355464,67977.0,67967.0,0.02894297]
[1772897594511,0.07354347,67987.0,67969.0,0.02894297]
[1772897594718,0.07354347,67987.0,67969.0,0.04535914]
[1772897594929,0.07354347,67987.0,67968.0,0.00148]
[1772897594930,0.00148,67994.0,67972.0,0.02894297]
[1772897595142,0.04960046,67997.0,67976.0,0.02894297]
[1772897595349,0.00148,67996.0,67979.0,0.04535914]
[1772897595583,0.00148,67996.0,67982.0,0.02894297]
[1772897595787,0.07353481,67995.0,67985.0,0.07354563]
[1772897595989,0.07353481,67995.0,67985.0,0.07337588]
[1772897596193,0.07365491,67995.0,67985.0,0.07337588]
[1772897598496,0.07365491,67995.0,67985.0,0.10231885]
[1772897598991,0.07745012,68000.0,67985.0,0.10231885]
[1772897598992,0.07353071,67999.0,67986.0,0.02894297]
[1772897599192,0.00122001,68000.0,67986.0,0.02894297]
[1772897599193,0.00148,67998.0,67986.0,0.02906307]
[1772897599397,0.00148,67998.0,67986.0,0.04547924]
[1772897599611,0.00148,67998.0,67987.0,0.02894297]
[1772897599858,0.00122001,68000.0,67987.0,0.02894297]
[1772897600072,0.04385046,68017.0,67991.0,0.02894297]
[1772897600243,0.07350995,68018.0,67988.0,0.07354238]
[1772897600244,0.04385046,68015.0,67993.0,0.02894297]
[1772897600595,0.07350995,68018.0,67992.0,0.04683914]
[1772897600596,0.00148,68014.0,67995.0,0.02894297]
[1772897600792,0.04385046,68017.0,67997.0,0.07430211]
[1772897600995,0.04385046,68017.0,67998.0,0.03042297]
[1772897601323,0.04385046,68017.0,67999.0,0.04535914]
[1772897601502,0.00148,68016.0,68000.0,0.02894297]
[1772897602099,0.07351319,68015.0,68002.0,0.02798222]
[1772897602859,0.07499319,68015.0,68002.0,0.02798222]
[1772897603234,0.07351319,68015.0,68002.0,0.04535914]
[1772897603439,0.07351319,68015.0,68003.0,0.02798222]
[1772897603715,0.07351319,68015.0,67994.0,0.00148]
[1772897603716,0.04385046,68014.0,67994.0,0.00148]
[1772897603888,0.04385046,68014.0,67989.0,0.07354116]
[1772897604089,0.04385046,68009.0,67986.0,0.0003201]
[1772897604316,0.04385046,68007.0,67987.0,0.00148]
[1772897604726,0.04385046,68007.0,67986.0,0.07386362]
[1772897604936,0.04385046,68007.0,67986.0,0.07386451]
[1772897606447,0.04385046,68005.0,67986.0,0.07386451]
[1772897607381,0.07352292,68006.0,67978.0,0.07503284]
[1772897607382,0.04882336,68004.0,67978.0,0.07503284]
[1772897607586,0.04385046,68003.0,67979.0,0.07375179]
[1772897607789,0.04385046,68001.0,67979.0,0.07523184]
[1772897608149,0.04385046,68001.0,67974.0,0.07366753]
[1772897608574,0.04385046,67999.0,67974.0,0.07366753]
[1772897608946,0.04385046,67999.0,67975.0,0.07395584]
[1772897609382,0.00148,67998.0,67978.0,0.04535914]
[1772897609717,0.04385046,67999.0,67979.0,0.04535914]
[1772897609917,0.00148,67997.0,67980.0,0.02829839]
[1772897610184,0.04385046,67996.0,67980.0,0.02829839]
[1772897610398,0.04533046,67996.0,67976.0,0.00148]
[1772897610598,0.04385046,67994.0,67976.0,0.00148]
[1772897611057,0.04385046,67994.0,67977.0,0.07355429]
[1772897611693,0.04385046,67994.0,67976.0,0.02977839]
[1772897611889,0.04385046,67994.0,67976.0,0.00148]
[1772897612336,0.07353481,67995.0,67975.0,0.07395632]
[1772897612539,0.00148,68000.0,67982.0,0.04755404]
[1772897612734,0.00148,67999.0,67985.0,0.02829839]
[1772897612916,0.00148,67999.0,67986.0,0.02829839]
[1772897613127,0.07352616,68003.0,67986.0,0.02829839]
[1772897613323,0.00148,68002.0,67986.0,0.02829839]
[1772897613802,0.00148,68002.0,67987.0,0.02829839]
[1772897614152,0.00148,68002.0,67988.0,0.04755404]
[1772897614311,0.00148,68002.0,67980.0,0.07355104]
[1772897614312,0.00012001,68004.0,67992.0,0.04755404]
[1772897614520,0.00012001,68004.0,67995.0,0.02829839]
[1772897614730,0.00012001,68004.0,67996.0,0.02829839]
[1772897615618,0.07351643,68012.0,67999.0,0.04755404]
[1772897615820,0.07351643,68012.0,68002.0,0.02829839]
[1772897616038,0.07351643,68012.0,68002.0,0.04767405]
[1772897616248,0.07351643,68012.0,68003.0,0.02829839]
[1772897616449,0.07351643,68012.0,68003.0,0.02814839]
[1772897616646,0.07351643,68012.0,68002.0,0.00012001]
[1772897616843,0.12013518,68012.0,68002.0,0.00012001]
[1772897617100,0.07351643,68012.0,68002.0,0.07364719]
[1772897617273,0.07351643,68012.0,68003.0,0.02822339]
[1772897617446,0.07499643,68012.0,68003.0,0.02822339]
[1772897617652,0.07499643,68014.0,68003.0,0.02822339]
[1772897617832,0.07499643,68014.0,68004.0,0.02822339]
[1772897618283,0.07351643,68014.0,68004.0,0.02822339]
[1772897618652,0.07350995,68018.0,68005.0,0.073524]
[1772897618880,0.00148,68017.0,68006.0,0.02822339]
[1772897619085,0.00148,68016.0,68008.0,0.02822339]
[1772897619289,0.00148,68016.0,68005.0,0.073524]
[1772897619503,0.00148,68016.0,68004.0,0.073524]
[1772897620317,0.04661875,68015.0,68002.0,0.00012001]
[1772897620521,0.00148,68016.0,68002.0,0.00012001]
[1772897620522,0.00148,68016.0,68003.0,0.04755404]
[1772897620748,0.07350995,68018.0,68005.0,0.073524]
[1772897620931,0.00148,68017.0,68007.0,0.02822339]
[1772897621329,0.07350995,68018.0,68007.0,0.02822339]
[1772897621569,0.00148,68017.0,68008.0,0.04755404]
[1772897621777,0.00022001,68014.0,68008.0,0.07577743]
[1772897622761,0.07351535,68013.0,68008.0,0.04755404]
[1772897622942,0.07351535,68013.0,68003.0,0.02822339]
[1772897624891,0.07351535,68013.0,68004.0,0.07352508]
[1772897625103,0.07351535,68013.0,68002.0,0.10335004]
[1772897625510,0.07351535,68013.0,68002.0,0.0298234]
[1772897625697,0.07351535,68013.0,68002.0,0.00160001]
[1772897626138,0.07351535,68013.0,68002.0,0.0298234]
[1772897626342,0.07351535,68013.0,68002.0,0.10187055]
[1772897626537,0.07351535,68013.0,68002.0,0.10335055]
[1772897627144,0.07351535,68013.0,68002.0,0.0298234]
[1772897628854,0.07351535,68013.0,68002.0,0.00160001]
[1772897629355,0.07351535,68013.0,68002.0,0.00012001]
[1772897629783,0.07351535,68013.0,68003.0,0.0272872]
[1772897629944,0.07499535,68013.0,68003.0,0.0272872]
[1772897630142,0.07351535,68013.0,68002.0,0.07364706]
[1772897630983,0.07351535,68013.0,68003.0,0.04755404]
[1772897631178,0.07351535,68013.0,68002.0,0.00012001]
[1772897631584,0.07351535,68013.0,68002.0,0.00032001]
[1772897631955,0.07351535,68013.0,68002.0,0.02760721]
[1772897632350,0.07351535,68013.0,68002.0,0.00032001]
[1772897633083,0.07351535,68013.0,68002.0,0.02760721]
[1772897633284,0.07351535,68013.0,68002.0,0.00032001]
[1772897637554,0.07351535,68013.0,68003.0,0.07352616]
[1772897637758,0.07351535,68013.0,68003.0,0.07337616]
[1772897637957,0.07351535,68013.0,68002.0,0.02760721]
[1772897638379,0.07351535,68013.0,68002.0,0.10113433]
[1772897638573,0.07351535,68013.0,68002.0,0.02760721]
[1772897638823,0.00022001,68014.0,68004.0,0.0272872]
[1772897638991,0.07521491,68014.0,68006.0,0.0272872]
[1772897639591,0.07521491,68014.0,68002.0,0.00032001]
[1772897639916,0.07521491,68014.0,68002.0,0.00180001]
[1772897640958,0.12060761,68014.0,68002.0,0.00180001]
[1772897641274,0.00022001,68013.0,68002.0,0.00180001]
[1772897641471,0.0453927,68011.0,67995.0,0.00168]
[1772897641675,0.04551271,68011.0,67995.0,0.00168]
[1772897641879,0.04551271,68011.0,67995.0,0.0002]
[1772897642289,0.04551271,68011.0,67990.0,0.0272872]
[1772897642493,0.04551271,68011.0,67989.0,0.07354127]
[1772897642816,0.0735186,68010.0,67990.0,0.02759534]
[1772897643012,0.11874254,68010.0,67990.0,0.02759534]
[1772897643784,0.04522394,68009.0,67990.0,0.10113535]
[1772897643939,0.04670394,68008.0,67990.0,0.10113535]
[1772897644141,0.04670394,68008.0,67990.0,0.02759534]
[1772897644689,0.04670394,68008.0,67990.0,0.10113484]
[1772897644988,0.07352184,68007.0,67990.0,0.02759534]
[1772897645574,0.07352184,68007.0,67990.0,0.10113546]
[1772897645773,0.0720741,68007.0,67990.0,0.10113546]
[1772897645984,0.01577703,68006.0,67990.0,0.10113546]
[1772897646864,0.01577703,68006.0,67991.0,0.02217367]
[1772897648941,0.01577703,68006.0,67988.0,0.00148]
[1772897648942,0.01576164,68000.0,67984.0,0.00148]
[1772897649176,0.01724164,67999.0,67984.0,0.00148]
[1772897649380,0.01576164,67997.0,67984.0,0.00148]
[1772897649720,0.00148,67999.0,67983.0,0.02282768]
[1772897649920,0.01723175,67999.0,67983.0,0.02282768]
[1772897650392,0.01723175,67999.0,67991.0,0.0002]
[1772897651045,0.07353157,67998.0,67984.0,0.04587263]
[1772897651244,0.08939041,67998.0,67984.0,0.04587263]
[1772897651468,0.07353157,67998.0,67986.0,0.04567263]
[1772897652349,0.08938012,67998.0,67985.0,0.02282768]
[1772897653381,0.08793558,67998.0,67985.0,0.02282768]
[1772897653710,0.08793558,67998.0,67984.0,0.0002]
[1772897653919,0.01582852,67997.0,67984.0,0.0002]
[1772897655777,0.07353373,67996.0,67984.0,0.0002]
[1772897656189,0.07353233,67998.0,67984.0,0.0002]
[1772897656440,0.07353233,67998.0,67987.0,0.04567263]
[1772897656640,0.07353233,67998.0,67990.0,0.02282768]
[1772897656841,0.07353233,67998.0,67991.0,0.06850031]
[1772897657754,0.07352292,68006.0,67991.0,0.06850031]
[1772897657913,0.00148,68001.0,67992.0,0.02282768]
[1772897658757,0.07352292,68006.0,67992.0,0.02282768]
[1772897659062,0.00148,68001.0,67992.0,0.02282768]
[1772897659262,0.07352292,68006.0,67992.0,0.02282768]
[1772897659425,0.00148,68001.0,67992.0,0.02282768]
[1772897660108,0.00148,68001.0,67988.0,0.00148]
[1772897660429,0.00148,68001.0,67988.0,0.02430768]
[1772897661276,0.00148,68001.0,67988.0,0.09784979]
[1772897661699,4.227e-05,68001.0,67988.0,0.09784979]
[1772897661904,0.0735706,68001.0,67988.0,0.02430768]
[1772897662969,0.0735706,68001.0,67989.0,0.02282768]
[1772897663712,0.0735706,68001.0,67990.0,0.04567263]
[1772897663951,4.227e-05,68001.0,67992.0,0.06850031]
[1772897664107,4.227e-05,68001.0,67992.0,0.04567263]
[1772897664303,0.07352833,68004.0,67993.0,0.02282768]
[1772897664554,0.00148,68003.0,67993.0,0.02282768]
[1772897664757,0.00148,68003.0,67993.0,0.04567263]
[1772897664904,0.00148,68002.0,67994.0,0.02282768]
[1772897665111,0.07352833,68004.0,67994.0,0.02282768]
[1772897665311,0.00148,68004.0,67997.0,0.04567263]
[1772897665547,0.00148,68004.0,67998.0,0.02282768]
[1772897666148,0.07352616,68003.0,67998.0,0.04567263]
[1772897666363,0.07352616,68003.0,67999.0,0.02282768]
[1772897667295,0.02103484,68005.0,68000.0,0.04567263]
[1772897667477,0.02103484,68005.0,68001.0,0.02282768]
[1772897667680,0.07352616,68004.0,68001.0,0.02282768]
[1772897667882,0.07352508,68005.0,68001.0,0.02282768]
[1772897668492,0.00012001,68011.0,68001.0,0.02282768]
[1772897668493,0.07350995,68018.0,68002.0,0.07500724]
[1772897668759,0.04534394,68033.0,68003.0,0.02282768]
[1772897668962,0.07349939,68028.0,68007.0,0.02282768]
[1772897669144,0.07349767,68030.0,68010.0,0.04567263]
[1772897669291,0.07349767,68030.0,68011.0,0.02282768]
[1772897669630,0.07349819,68029.0,68011.0,0.02282768]
[1772897670437,0.00022001,68018.0,68013.0,0.02282768]
[1772897670618,0.00022001,68018.0,68015.0,0.02282768]
[1772897672559,0.00022001,68018.0,68016.0,0.07351211]
[1772897672771,0.04522394,68030.0,68017.0,0.02282768]
[1772897672981,0.0017426,68031.0,68017.0,0.02282768]
[1772897673333,0.07349762,68030.0,68017.0,0.02282768]
[1772897673534,0.07350136,68026.0,68017.0,0.02282768]
[1772897673748,0.12042675,68027.0,68017.0,0.02282768]
[1772897674379,0.0735017,68026.0,68017.0,0.02282768]
[1772897674527,0.0735017,68026.0,68018.0,0.07350995]
[1772897675402,0.0735017,68026.0,68018.0,0.09633763]
[1772897676101,0.07390268,68025.0,68018.0,0.09633763]
[1772897676277,0.07390268,68025.0,68018.0,0.02282768]
[1772897677003,0.07412269,68025.0,68018.0,0.02282768]
[1772897678714,0.07412269,68025.0,68018.0,0.0963367]
[1772897680807,0.07412269,68025.0,68018.0,0.02282768]
[1772897682379,0.07412269,68025.0,68015.0,0.00148]
[1772897682380,0.07412269,68025.0,68015.0,0.07499316]
[1772897682586,0.04692649,68024.0,68012.0,0.02416246]
[1772897682755,0.07167413,68022.0,68011.0,0.00148]
[1772897682963,0.04692649,68021.0,68010.0,0.27351843]
[1772897683546,0.07560269,68025.0,68011.0,0.02416246]
[1772897683547,0.07412269,68025.0,68011.0,0.02416246]
[1772897683759,0.02496765,68032.0,68010.0,0.27351843]
[1772897683760,0.00128,68040.0,68012.0,0.0475517]
[1772897683946,0.02474764,68038.0,68015.0,0.02416246]
[1772897684293,0.07349158,68035.0,68016.0,0.07351211]
[1772897684507,0.04692649,68034.0,68017.0,0.02416246]
[1772897684704,0.04692649,68034.0,68019.0,0.02416246]
[1772897685056,0.00022001,68025.0,68019.0,0.02416246]
[1772897686651,0.02474764,68023.0,68008.0,0.02436246]
[1772897686857,0.07372252,68025.0,68008.0,0.02436246]
[1772897686858,0.07372252,68025.0,68011.0,0.02416246]
[1772897687212,0.04692649,68023.0,68010.0,0.27499849]
[1772897687673,0.04692649,68023.0,68010.0,0.27599849]
[1772897687869,0.04692649,68019.0,68010.0,0.201]
[1772897688101,0.04692649,68018.0,68010.0,0.201]
[1772897688628,0.12043752,68017.0,68010.0,0.001]
[1772897688990,0.04692649,68016.0,68008.0,0.0002]
[1772897689349,0.09825867,68017.0,68002.0,0.00012001]
[1772897689350,0.02474764,68013.0,68002.0,0.00012001]
[1772897689549,0.07351103,68017.0,68002.0,0.00012001]
[1772897689550,0.02474764,68011.0,68002.0,0.00012001]
[1772897689749,0.02474764,68009.0,68001.0,0.0002]
[1772897690006,0.04692649,68008.0,67997.0,0.00575]
[1772897690193,0.02474764,68006.0,67995.0,0.0002626]
[1772897690384,0.04692649,68004.0,67995.0,0.0002626]
[1772897690731,0.07352616,68003.0,67992.0,0.0002]
[1772897690912,0.04692649,68002.0,67992.0,0.0002]
[1772897691477,0.02474764,67999.0,67984.0,0.00035]
[1772897691679,0.04692649,67995.0,67984.0,0.00035]
[1772897691882,0.04692649,67994.0,67984.0,0.00035]
[1772897692438,0.04692649,67994.0,67985.0,0.0003548]
[1772897692633,0.07353698,67993.0,67984.0,1e-08]
[1772897692873,0.02474764,67990.0,67984.0,1e-08]
[1772897693018,0.07353698,67993.0,67984.0,1e-08]
[1772897693226,0.04692649,67990.0,67984.0,1e-08]
[1772897694002,0.07167413,67990.0,67984.0,1e-08]
[1772897694386,0.02474764,67990.0,67984.0,1e-08]
[1772897694588,0.02474764,67988.0,67984.0,1e-08]
[1772897694785,0.1452176,67987.0,67984.0,1e-08]
[1772897694990,0.1452176,67987.0,67979.0,0.0002]
[1772897695911,0.14533752,67987.0,67979.0,0.0002]
[1772897696115,0.14633752,67987.0,67979.0,0.0002]
[1772897696238,0.07466339,67987.0,67979.0,0.0002]
[1772897696466,0.07366339,67987.0,67979.0,0.0002]
[1772897696912,0.00011992,67987.0,67979.0,0.0002]
[1772897698923,0.00011992,67987.0,67979.0,0.02436246]
[1772897699121,0.00011992,67987.0,67979.0,0.01436246]
[1772897699721,0.05129926,68002.0,67978.0,0.07355212]
[1772897699922,0.1248265,68002.0,67979.0,0.02416246]
[1772897700159,0.00148,68001.0,67979.0,0.02416246]
[1772897700426,0.05277926,68001.0,67979.0,0.02416246]
[1772897700590,0.05129926,68001.0,67980.0,0.00030487]
[1772897700743,0.00148,68000.0,67981.0,0.02436823]
[1772897700945,0.05277926,68000.0,67981.0,0.02436823]
[1772897701411,0.07353049,67999.0,67982.0,0.07354888]
[1772897701584,0.00148,67998.0,67985.0,0.02436823]
[1772897701785,0.07353049,68001.0,67982.0,0.07354888]
[1772897701786,0.00148,67997.0,67983.0,0.02436823]
[1772897702122,0.00148,67997.0,67983.0,0.00611947]
[1772897702319,0.00148,67997.0,67982.0,0.07354888]
[1772897702320,0.09706827,68001.0,67984.0,0.02436823]
[1772897702543,0.00148,67996.0,67984.0,0.02436823]
[1772897703239,0.07352833,68003.0,67982.0,0.07354888]
[1772897703240,0.07352184,68009.0,67988.0,0.02436823]
[1772897703522,0.00148,68007.0,67992.0,0.02436823]
[1772897703698,0.00148,68007.0,67992.0,0.02776723]
[1772897703900,0.00148,68006.0,67992.0,0.02776723]
[1772897704299,0.07374101,68008.0,67992.0,0.02776723]
[1772897704502,0.00148,68005.0,67992.0,0.02436823]
[1772897705337,0.00022001,68008.0,67993.0,0.00357685]
[1772897705551,0.00148,68007.0,67996.0,0.02436823]
[1772897706165,0.00148,68006.0,67996.0,0.02436823]
[1772897707045,0.00022001,68008.0,67996.0,0.02436823]
[1772897707522,0.00022001,68008.0,67997.0,0.07353265]
[1772897707890,0.00148,68007.0,67998.0,0.02436823]
[1772897708226,0.00022001,68005.0,67998.0,0.02436823]
[1772897709017,0.00148,68007.0,67998.0,0.02436823]
[1772897710058,0.00148,68007.0,67999.0,0.07353049]
[1772897710461,0.00022001,68015.0,67999.0,0.07353049]
[1772897710807,0.00022001,68015.0,68002.0,0.02485344]
[1772897710808,0.00170001,68015.0,68002.0,0.02485344]
[1772897711203,0.00026003,68015.0,68002.0,0.02485344]
[1772897711422,0.00148,68014.0,68002.0,0.02485344]
[1772897711848,0.00148,68013.0,68002.0,0.02485344]
[1772897712226,0.00026003,68015.0,68003.0,0.07352616]
[1772897712429,0.00026003,68015.0,68004.0,0.02485344]
[1772897712430,0.00148,68013.0,68004.0,0.02485344]
[1772897712786,0.07372896,68019.0,68004.0,0.02485344]
[1772897712787,0.00022001,68019.0,68004.0,0.02485344]
[1772897713028,0.00148,68018.0,68005.0,0.00148]
[1772897713227,0.07692963,68017.0,68005.0,0.00148]
[1772897714305,0.02454294,68017.0,68006.0,0.07352292]
[1772897714494,0.05238669,68014.0,68006.0,0.07352292]
[1772897715520,0.00148,68018.0,68006.0,0.07352292]
[1772897715720,0.00022001,68013.0,68006.0,0.09837636]
[1772897724144,0.00022001,68013.0,68006.0,0.09857636]
[1772897724971,0.00022001,68013.0,68006.0,0.07372292]
[1772897725173,0.00022001,68013.0,68006.0,0.07352292]
[1772897725374,0.07373588,68013.0,67999.0,0.07352967]
[1772897725570,0.07351968,68009.0,67996.0,0.07353373]
[1772897725826,0.02602294,68008.0,67996.0,0.07353373]
[1772897726029,0.05001603,68005.0,67996.0,0.07353373]
[1772897726202,0.02454294,68002.0,67992.0,0.07353739]
[1772897726405,0.00148,68001.0,67992.0,0.07353739]
[1772897726616,0.00148,68000.0,67990.0,0.07353806]
[1772897726899,0.07351968,68009.0,67985.0,0.07354493]
[1772897726900,0.00148,67999.0,67989.0,0.07354093]
[1772897727101,0.05001603,67997.0,67988.0,0.07354238]
[1772897727302,0.07455897,67995.0,67988.0,0.07354238]
[1772897727607,0.00148,67994.0,67988.0,0.07354238]
[1772897727750,0.00148,67994.0,67981.0,0.07374985]
[1772897727751,0.07501606,67994.0,67982.0,0.07354888]
[1772897727964,0.02454294,67992.0,67982.0,0.07354888]
[1772897728158,0.07455897,67992.0,67982.0,0.07354888]
[1772897728403,0.02454294,67991.0,67982.0,0.07354888]
[1772897728603,0.02454294,67990.0,67982.0,0.07354888]
[1772897728808,0.07455897,67989.0,67981.0,0.0002]
[1772897729008,0.00148,67988.0,67981.0,0.0002]
[1772897729219,0.05149603,67988.0,67981.0,0.0002]
[1772897729411,0.02454294,67987.0,67981.0,0.07374959]
[1772897729802,0.02454294,67987.0,67981.0,0.0002]
[1772897730947,0.07353625,67994.0,67981.0,0.0002]
[1772897730948,0.00148,68001.0,67984.0,0.02485344]
[1772897731122,0.00011997,68001.0,67986.0,0.43402]
[1772897731322,0.00011997,68001.0,67985.0,0.38262]
[1772897731522,0.00011997,68001.0,67983.0,0.52302]
[1772897731734,0.00011997,68001.0,67986.0,0.26525]
[1772897731929,0.00011997,68001.0,67989.0,0.02485344]
[1772897733913,0.00011997,68001.0,67990.0,0.07354022]
[1772897734253,0.00011997,68001.0,67991.0,0.02485344]
[1772897736116,0.00011997,68001.0,67993.0,0.02485344]
[1772897736719,0.07489264,68008.0,67993.0,0.02485344]
[1772897737015,0.00148,68007.0,67993.0,0.02497341]
[1772897738682,0.07500218,68007.0,67994.0,0.0735359]
[1772897738880,0.07500218,68007.0,67994.0,0.09805044]
[1772897739742,0.07352218,68007.0,67994.0,0.09805044]
[1772897739944,0.00148,68006.0,67994.0,0.09805044]
[1772897740353,0.00148,68006.0,67995.0,0.02451454]
[1772897740962,0.00022001,68007.0,67996.0,0.07353373]
[1772897741167,0.00148,68006.0,67996.0,0.07353373]
[1772897748577,0.00148,68008.0,67997.0,0.02451454]
[1772897748773,0.05056971,68014.0,67997.0,0.02451454]
[1772897749022,0.00022001,68014.0,67999.0,0.05350574]
[1772897749200,0.00022001,68014.0,68000.0,0.02599454]
[1772897749399,0.00170001,68014.0,68000.0,0.02599454]
[1772897750159,0.00170001,68014.0,68001.0,0.07352833]
[1772897750376,0.05204971,68014.0,68001.0,0.07352833]
[1772897750584,0.00170001,68014.0,68001.0,0.07352833]